bitfinex/quotes_BTCUSD_20251230
["timestamp","ask_amount","ask_price","bid_price","bid_amount"]
[1767111825808,0.0114,89269.0,89248.0,0.0114]
[1767111826123,0.01120285,89263.0,89240.0,0.0114]
[1767111826283,0.27306,89256.0,89240.0,0.0114]
[1767111827046,0.0002,89257.0,89256.0,0.00055]
[1767111827343,0.0114,89271.0,89257.0,4.999e-05]
[1767111827543,0.0002,89273.0,89254.0,0.29503]
[1767111828071,0.000149,89254.0,89253.0,0.0002]
[1767111828524,0.27306,89266.0,89253.0,0.0002]
[1767111828929,0.0002,89273.0,89254.0,0.29503]
[1767111829158,0.0114,89271.0,89254.0,0.29503]
[1767111829341,0.27306,89270.0,89253.0,0.0002]
[1767111830386,0.27306,89269.0,89253.0,5.1e-05]
[1767111831291,0.27306,89269.0,89237.0,0.29523]
[1767111831600,0.27306,89269.0,89243.0,0.0114]
[1767111831733,0.27306,89269.0,89244.0,0.29503]
[1767111831936,0.27306,89269.0,89244.0,0.290389]
[1767111832600,0.27306,89269.0,89245.0,0.0114]
[1767111833141,0.27306,89269.0,89244.0,0.290389]
[1767111833344,0.27306,89269.0,89245.0,0.0114]
[1767111833769,0.27306,89269.0,89245.0,0.30643]
[1767111833978,0.0114,89271.0,89245.0,0.30643]
[1767111834181,0.0002,89273.0,89245.0,0.30643]
[1767111834492,0.27326,89273.0,89245.0,0.30643]
[1767111837029,0.27306,89271.0,89245.0,0.30643]
[1767111837234,0.27306,89269.0,89245.0,0.30643]
[1767111837871,0.0002,89273.0,89254.0,0.01120397]
[1767111838202,0.0002,89273.0,89256.0,0.29503]
[1767111838993,0.01193896,89284.0,89256.0,0.29503]
[1767111838994,0.00053896,89284.0,89264.0,0.29503]
[1767111839215,0.00053896,89284.0,89271.0,0.29503]
[1767111840270,0.00064543,89284.0,89271.0,0.29503]
[1767111840476,0.0002,89303.0,89284.0,0.000538]
[1767111840477,0.27306,89302.0,89284.0,0.000538]
[1767111840637,0.27306,89300.0,89285.0,0.0114]
[1767111840842,0.27306,89300.0,89285.0,0.01124999]
[1767111841074,0.0002,89303.0,89286.0,0.29503]
[1767111841289,0.0002,89303.0,89291.0,0.29503]
[1767111841867,0.0120382,89319.0,89297.0,0.29503]
[1767111841986,0.00074465,89319.0,89298.0,0.0114]
[1767111842338,0.00074465,89319.0,89300.0,0.29503]
[1767111843094,0.00074465,89319.0,89305.0,0.29503]
[1767111843292,0.00019565,89319.0,89309.0,0.53953645]
[1767111843562,0.27306,89331.0,89310.0,0.29503]
[1767111843766,0.27306,89331.0,89310.0,0.29513645]
[1767111844113,0.3098585,89341.0,89286.0,0.01119996]
[1767111844114,0.27965,89329.0,89286.0,0.01119996]
[1767111844315,0.001099,89310.0,89288.0,0.27683]
[1767111844628,0.27965,89319.0,89290.0,0.53953645]
[1767111844832,0.27965,89319.0,89300.0,0.53953645]
[1767111845064,0.27965,89319.0,89301.0,0.0114]
[1767111846136,0.27965,89319.0,89289.0,0.27683]
[1767111846341,0.27965,89319.0,89291.0,0.28802933]
[1767111846546,0.27965,89319.0,89293.0,0.27683]
[1767111847305,0.27965,89317.0,89278.0,0.27683]
[1767111847452,0.001099,89293.0,89279.0,0.28823]
[1767111847649,0.001099,89293.0,89279.0,0.27683]
[1767111847852,0.27965,89299.0,89280.0,0.0114]
[1767111848947,0.27965,89299.0,89279.0,0.27683]
[1767111849151,0.05598391,89312.0,89265.0,0.0114]
[1767111849152,0.001099,89279.0,89265.0,0.0114]
[1767111849357,0.27965,89289.0,89265.0,0.01150647]
[1767111849358,0.53953645,89280.0,89265.0,0.01150647]
[1767111849507,0.81918645,89275.0,89265.0,0.00010647]
[1767111849709,0.83058645,89275.0,89265.0,0.00010647]
[1767111849921,0.83058645,89275.0,89250.0,0.27683]
[1767111849922,0.27965,89274.0,89249.0,0.0114]
[1767111850274,0.27965,89269.0,89255.0,0.0002]
[1767111850613,0.27965,89269.0,89249.0,0.0003551]
[1767111851008,0.53953645,89260.0,89249.0,0.0003551]
[1767111851209,0.0114,89259.0,89249.0,0.0003551]
[1767111852528,0.27965,89263.0,89249.0,0.0003551]
[1767111852746,0.0114,89262.0,89249.0,0.0003551]
[1767111852932,0.0114,89261.0,89249.0,0.0003551]
[1767111853131,0.27965,89263.0,89249.0,0.0003551]
[1767111853574,0.53953645,89260.0,89249.0,0.0003551]
[1767111853936,0.6270791,89260.0,89249.0,0.0003551]
[1767111854384,0.08754265,89260.0,89249.0,0.0003551]
[1767111854617,0.0114,89259.0,89249.0,0.0003551]
[1767111856228,0.27774,89258.0,89249.0,0.0003551]
[1767111856385,0.27774,89258.0,89222.0,0.01120799]
[1767111856386,0.000355,89249.0,89222.0,0.01120799]
[1767111856583,0.0114,89248.0,89231.0,0.01120686]
[1767111856785,0.0002,89259.0,89248.0,0.01120473]
[1767111856984,0.0114,89262.0,89259.0,0.0002]
[1767111857219,0.27794,89275.0,89262.0,0.000355]
[1767111857525,0.0002,89275.0,89256.0,0.20215]
[1767111857726,0.0114,89274.0,89256.0,0.20215]
[1767111858083,0.01175466,89274.0,89256.0,0.20215]
[1767111859094,0.0114,89273.0,89256.0,0.20215]
[1767111859684,0.53953645,89270.0,89256.0,0.20215]
[1767111860904,0.0114,89273.0,89256.0,0.20215]
[1767111862772,0.0002,89275.0,89274.0,0.2016]
[1767111862773,4.66e-06,89275.0,89274.0,0.2016]
[1767111863028,0.0114,89295.0,89274.0,0.2016]
[1767111863205,0.01150637,89295.0,89274.0,0.2016]
[1767111863734,0.00010637,89295.0,89272.0,0.01120172]
[1767111864032,3.7e-07,89295.0,89275.0,0.20086]
[1767111864173,3.7e-07,89295.0,89285.0,0.0002]
[1767111864376,3.7e-07,89295.0,89286.0,0.20086]
[1767111867111,3.7e-07,89295.0,89285.0,0.0002]
[1767111867509,0.27774,89294.0,89267.0,0.05601148]
[1767111867731,0.27774,89294.0,89265.0,0.0002]
[1767111867732,0.27774,89279.0,89265.0,0.0002]
[1767111867942,0.53953645,89280.0,89265.0,0.0002]
[1767111868146,0.27774,89279.0,89265.0,0.0002]
[1767111869104,0.27774,89286.0,89265.0,0.0002]
[1767111869605,0.0114,89285.0,89269.0,0.21226209]
[1767111869781,0.27774037,89295.0,89268.0,0.20106]
[1767111869981,0.27774,89284.0,89265.0,0.21291259]
[1767111870194,0.27774,89284.0,89265.0,0.20171]
[1767111870393,0.53953645,89290.0,89267.0,0.01120234]
[1767111870558,0.0114,89291.0,89272.0,0.20151]
[1767111870985,0.0114,89291.0,89272.0,0.21271172]
[1767111871183,0.0114,89291.0,89273.0,0.01120159]
[1767111871541,0.0114,89294.0,89274.0,0.21271146]
[1767111872071,3.7e-07,89295.0,89282.0,0.01120046]
[1767111872223,3.7e-07,89295.0,89282.0,0.20151]
[1767111872403,3.7e-07,89295.0,89285.0,0.20151]
[1767111872602,3.7e-07,89295.0,89285.0,0.21271008]
[1767111873146,3.7e-07,89295.0,89285.0,0.11271008]
[1767111873511,3.7e-07,89295.0,89287.0,0.10151]
[1767111874447,3.7e-07,89295.0,89287.0,0.11270983]
[1767111874650,3.7e-07,89295.0,89289.0,0.10151]
[1767111875027,0.0002,89305.0,89291.0,0.10151]
[1767111876362,0.24826342,89312.0,89291.0,0.10151]
[1767111877277,0.0114,89316.0,89297.0,0.13099]
[1767111877430,0.0114,89316.0,89298.0,0.0114]
[1767111877636,0.2427,89318.0,89298.0,0.0114]
[1767111877856,0.2541,89318.0,89298.0,0.0114]
[1767111878069,0.2541,89318.0,89299.0,0.13099]
[1767111878626,0.2427,89318.0,89299.0,0.13099]
[1767111879231,0.52044,89318.0,89299.0,0.13099]
[1767111879435,0.5209421,89318.0,89299.0,0.13099]
[1767111879631,0.5323021,89318.0,89301.0,0.14218808]
[1767111879889,0.5323021,89318.0,89301.0,0.13099]
[1767111880311,0.5209421,89318.0,89301.0,0.13099]
[1767111880797,0.2432021,89318.0,89301.0,0.13099]
[1767111880978,0.27774,89317.0,89298.0,0.0114]
[1767111881174,0.27774,89317.0,89299.0,0.13099]
[1767111881377,0.2782421,89317.0,89299.0,0.13099]
[1767111881697,0.0005021,89317.0,89303.0,0.13099]
[1767111882839,0.0005021,89317.0,89303.0,0.14218783]
[1767111883050,0.0005021,89317.0,89303.0,0.13099]
[1767111883480,0.27774,89316.0,89294.0,0.13099]
[1767111883684,0.27774,89309.0,89287.0,0.13099]
[1767111883812,0.27774,89309.0,89293.0,0.01136]
[1767111883813,0.000549,89298.0,89293.0,0.01136]
[1767111884226,0.27774,89309.0,89293.0,0.01136]
[1767111884450,0.2782421,89307.0,89293.0,0.01136]
[1767111887096,0.04009651,89341.0,89304.0,0.13271]
[1767111887301,0.28394,89335.0,89311.0,0.13271]
[1767111887467,0.28394,89335.0,89313.0,0.14390657]
[1767111887673,0.28394,89335.0,89321.0,0.06717341]
[1767111887877,0.28394,89335.0,89312.0,0.22393217]
[1767111887878,0.00010647,89336.0,89322.0,0.15313545]
[1767111888055,0.00010647,89336.0,89312.0,0.22393217]
[1767111888056,0.00010647,89336.0,89323.0,0.14194]
[1767111888260,0.00010647,89336.0,89324.0,0.01136]
[1767111890170,0.00010647,89336.0,89314.0,0.01119645]
[1767111890171,0.000549,89324.0,89320.0,0.01136]
[1767111890407,0.28394,89328.0,89320.0,0.01136]
[1767111890832,0.00010647,89336.0,89325.0,0.13058]
[1767111891806,0.00010647,89336.0,89325.0,0.14177507]
[1767111892007,0.00010647,89336.0,89327.0,0.13058]
[1767111892213,0.0005785,89342.0,89328.0,0.14184]
[1767111893020,0.28161015,89347.0,89328.0,0.02255469]
[1767111893233,0.28161015,89347.0,89329.0,0.01119457]
[1767111893434,0.28161015,89347.0,89330.0,0.01119444]
[1767111893895,0.28161015,89347.0,89329.0,0.01119457]
[1767111894277,0.28161015,89347.0,89329.0,0.13281]
[1767111894856,0.28161015,89347.0,89329.0,0.14400457]
[1767111895903,0.28161015,89347.0,89329.0,0.13281]
[1767111896110,0.000549,89329.0,89312.0,0.13281]
[1767111896313,0.284489,89329.0,89312.0,0.00010647]
[1767111896522,0.28394,89329.0,89313.0,0.01136]
[1767111896807,0.00055,89313.0,89312.0,0.00010647]
[1767111897012,0.28394,89320.0,89312.0,0.00010647]
[1767111898406,0.28394,89320.0,89312.0,4.7e-07]
[1767111898981,0.2953,89320.0,89293.0,0.13281]
[1767111899253,0.2953,89320.0,89294.0,0.01136]
[1767111899578,0.2953,89320.0,89295.0,0.13281]
[1767111899803,0.2953,89320.0,89294.0,0.01136]
[1767111899804,0.2953,89320.0,89297.0,0.13281]
[1767111900007,0.80109671,89320.0,89294.0,0.01136]
[1767111900182,0.28394,89318.0,89294.0,0.01136]
[1767111900406,0.28394,89318.0,89295.0,0.13281]
[1767111900636,0.28394,89318.0,89295.0,0.14400883]
[1767111901217,0.28394,89318.0,89295.0,0.13281]
[1767111901483,0.03008457,89344.0,89318.0,0.000106]
[1767111901629,0.28394,89330.0,89318.0,0.000106]
[1767111901847,0.28394,89330.0,89312.0,0.14243]
[1767111902048,0.28394,89330.0,89311.0,0.01136]
[1767111903437,0.01136,89330.0,89312.0,0.1536267]
[1767111903634,0.01136,89330.0,89312.0,0.14243]
[1767111903820,0.28394,89329.0,89311.0,0.01136]
[1767111904230,0.28394,89329.0,89296.0,0.0111987]
[1767111904231,0.78973671,89321.0,89300.0,0.14243]
[1767111904436,0.78973671,89321.0,89280.0,0.78973671]
[1767111904437,0.000443,89311.0,89301.0,0.01136]
[1767111904646,0.000443,89311.0,89295.0,0.01119883]
[1767111904843,0.27708,89315.0,89297.0,0.01119858]
[1767111905046,0.27708,89315.0,89296.0,0.01136]
[1767111905248,0.27708,89315.0,89297.0,0.01119858]
[1767111905946,0.27708,89315.0,89296.0,0.01136]
[1767111906533,0.27708,89315.0,89297.0,0.01119858]
[1767111906732,0.27708,89315.0,89296.0,0.01136]
[1767111907094,0.27708,89315.0,89296.0,0.0225587]
[1767111907303,0.27708,89315.0,89297.0,0.01119858]
[1767111907505,0.27708,89315.0,89298.0,0.01119845]
[1767111907933,0.27708,89315.0,89299.0,0.01119833]
[1767111908281,0.27708,89315.0,89298.0,0.01119845]
[1767111908479,0.27708,89315.0,89300.0,0.0111982]
[1767111908616,0.27708,89315.0,89301.0,0.01119808]
[1767111909358,0.27708,89315.0,89298.0,0.15362845]
[1767111909559,0.27708,89315.0,89298.0,0.14243]
[1767111909823,0.27708,89315.0,89298.0,0.01119845]
[1767111910032,0.27708,89315.0,89300.0,0.0111982]
[1767111910241,0.27708,89315.0,89299.0,0.01119833]
[1767111910445,0.27708,89315.0,89300.0,0.0111982]
[1767111910696,0.27708,89315.0,89296.0,0.01136]
[1767111910919,0.27708,89309.0,89291.0,0.00199]
[1767111911135,0.78973671,89310.0,89291.0,0.00199]
[1767111911136,0.27708,89295.0,89291.0,0.00199]
[1767111911351,0.27708,89295.0,89291.0,0.00144]
[1767111912282,0.27708,89295.0,89285.0,0.01136]
[1767111912498,0.27708,89295.0,89279.0,0.01136]
[1767111912725,0.27708,89295.0,89279.0,0.16643084]
[1767111912944,0.01136,89301.0,89295.0,0.000656]
[1767111913155,0.27708,89309.0,89292.0,0.01119921]
[1767111913361,0.01136,89308.0,89291.0,0.14387]
[1767111913778,0.28844,89308.0,89291.0,0.14387]
[1767111914419,0.28844,89308.0,89290.0,0.01119946]
[1767111914420,0.01136,89316.0,89295.0,0.01119883]
[1767111914637,0.28844,89315.0,89296.0,0.14387]
[1767111915689,0.28844,89315.0,89295.0,0.01136]
[1767111916314,0.27052,89313.0,89295.0,0.01136]
[1767111916734,0.27052,89313.0,89296.0,0.14387]
[1767111916987,0.27052,89319.0,89313.0,0.000106]
[1767111917196,0.82983322,89340.0,89313.0,0.000106]
[1767111917197,0.28188,89318.0,89313.0,0.000106]
[1767111917426,0.01136,89317.0,89300.0,0.14387]
[1767111918483,0.27052,89316.0,89300.0,0.14387]
[1767111918687,0.27052,89316.0,89295.0,0.01136]
[1767111919749,0.27052,89314.0,89295.0,0.01136]
[1767111919961,0.27052,89309.0,89278.0,0.01120096]
[1767111920169,0.000443,89295.0,89279.0,0.15523]
[1767111920377,0.270963,89295.0,89279.0,0.15523]
[1767111920639,0.27052,89295.0,89279.0,0.01136]
[1767111921080,0.27052,89295.0,89279.0,0.02256084]
[1767111921289,0.27052,89295.0,89280.0,0.01120071]
[1767111921495,0.27052,89295.0,89279.0,0.01136]
[1767111921698,0.27052,89295.0,89279.0,0.02256084]
[1767111921907,0.27052,89295.0,89279.0,0.01136]
[1767111923101,0.000443,89279.0,89265.0,0.0002]
[1767111923277,0.000443,89279.0,89265.0,0.15543]
[1767111923615,0.27052,89285.0,89265.0,0.15543]
[1767111923821,0.03008457,89315.0,89289.0,0.14387]
[1767111923974,0.02412041,89319.0,89300.0,0.78973671]
[1767111924182,0.02412041,89324.0,89310.0,0.78973671]
[1767111924405,0.27052,89326.0,89311.0,0.01136]
[1767111926236,0.27052,89326.0,89311.0,0.010917]
[1767111928754,0.27052,89324.0,89311.0,0.00354981]
[1767111929959,0.27052,89324.0,89301.0,0.05599002]
[1767111929960,0.27052,89324.0,89299.0,0.14387]
[1767111930168,0.27062637,89324.0,89300.0,0.0225582]
[1767111930375,0.27052,89322.0,89300.0,0.01136]
[1767111930609,0.27052,89319.0,89300.0,0.01136]
[1767111930773,0.78973671,89320.0,89300.0,0.01136]
[1767111930774,0.27052,89317.0,89300.0,0.01136]
[1767111932796,0.27052,89317.0,89300.0,0.0225582]
[1767111933042,0.27052,89317.0,89300.0,0.01136]
[1767111933181,0.01136,89316.0,89300.0,0.01136]
[1767111933379,0.27052,89315.0,89300.0,0.01136]
[1767111933947,0.01136,89315.0,89300.0,0.0225582]
[1767111934084,0.01136,89315.0,89301.0,0.01119808]
[1767111934285,0.01136,89315.0,89300.0,0.0225582]
[1767111934589,0.01136,89315.0,89300.0,0.01136]
[1767111934791,0.01136,89315.0,89301.0,0.01119808]
[1767111935413,0.27052,89320.0,89306.0,0.01119745]
[1767111935707,0.00010637,89324.0,89312.0,0.0111967]
[1767111935945,0.00010637,89324.0,89312.0,0.01136]
[1767111936356,0.00010637,89324.0,89312.0,0.0225567]
[1767111936997,0.00010637,89324.0,89314.0,0.01119645]
[1767111937434,0.00010637,89324.0,89312.0,0.1669767]
[1767111937647,0.00010637,89324.0,89313.0,0.01119657]
[1767111937894,0.00010637,89324.0,89312.0,0.1669767]
[1767111938277,0.00010637,89324.0,89315.0,0.01119632]
[1767111938486,3.7e-07,89324.0,89316.0,0.14442]
[1767111938894,3.7e-07,89324.0,89314.0,0.01119645]
[1767111939076,3.7e-07,89324.0,89317.0,0.01119607]
[1767111939640,3.7e-07,89324.0,89316.0,0.1556162]
[1767111940015,3.7e-07,89324.0,89319.0,0.15561582]
[1767111940220,3.7e-07,89324.0,89320.0,0.01136]
[1767111940445,3.7e-07,89324.0,89320.0,0.011255]
[1767111940605,0.27052037,89324.0,89320.0,0.011255]
[1767111940807,3.7e-07,89324.0,89320.0,0.011255]
[1767111946470,3.7e-07,89324.0,89320.0,0.01121291]
[1767111951109,3.7e-07,89324.0,89320.0,0.15563291]
[1767111951323,3.7e-07,89324.0,89320.0,0.01121291]
[1767111953509,3.7e-07,89324.0,89299.0,0.01119833]
[1767111953729,0.2936,89319.0,89299.0,0.01136]
[1767111953938,0.2936,89319.0,89285.0,0.01120008]
[1767111953939,0.2936,89317.0,89281.0,0.14442]
[1767111954154,0.2936,89309.0,89274.0,0.0448]
[1767111954371,0.2936,89299.0,89274.0,0.0448]
[1767111954621,0.2936,89297.0,89275.0,0.01136]
[1767111955505,0.2936,89297.0,89271.0,0.01153304]
[1767111955506,0.2936,89289.0,89271.0,0.0003312]
[1767111955928,0.2936,89289.0,89271.0,0.0004372]
[1767111956473,0.2936,89287.0,89271.0,0.0004372]
[1767111956886,0.01136,89287.0,89274.0,0.15562146]
[1767111957086,0.01136,89287.0,89275.0,0.01120134]
[1767111957632,0.01136,89287.0,89274.0,0.15562146]
[1767111957839,0.2936,89286.0,89271.0,0.0004372]
[1767111958007,0.2936,89295.0,89286.0,0.000549]
[1767111958205,0.2936,89295.0,89271.0,0.22447181]
[1767111958206,0.2936,89300.0,89282.0,0.01136]
[1767111959018,0.2936,89300.0,89273.0,0.05600792]
[1767111959019,0.29438,89291.0,89271.0,0.0004372]
[1767111959198,0.29438,89291.0,89272.0,0.01136]
[1767111959603,0.29438,89291.0,89271.0,0.0004372]
[1767111960568,0.29438,89289.0,89271.0,0.0004372]
[1767111961321,0.29438,89298.0,89281.0,0.01120059]
[1767111961624,0.29438,89304.0,89289.0,0.000549]
[1767111961823,0.29438,89299.0,89283.0,0.01136]
[1767111962077,0.29438,89299.0,89273.0,0.01120159]
[1767111962297,0.000549,89283.0,89276.0,0.01120121]
[1767111962503,0.29438,89295.0,89277.0,0.16737]
[1767111962911,0.29438,89295.0,89274.0,0.01136]
[1767111965258,0.29438,89295.0,89274.0,0.17818]
[1767111965895,0.01136,89305.0,89283.0,0.01120034]
[1767111966061,0.2427,89312.0,89286.0,0.17946]
[1767111966062,0.01136,89309.0,89286.0,0.17946]
[1767111966310,0.0002,89305.0,89286.0,0.17946]
[1767111966494,0.29438,89304.0,89285.0,0.0002]
[1767111966676,0.29438,89299.0,89285.0,0.0002]
[1767111967655,0.29438,89299.0,89241.0,0.0005012]
[1767111967656,0.29438,89294.0,89265.0,0.01156]
[1767111967872,0.29438,89289.0,89265.0,0.01156]
[1767111968078,0.29438,89287.0,89265.0,0.01156]
[1767111972727,0.29438,89280.0,89265.0,0.01156]
[1767111972877,0.53912357,89281.0,89257.0,0.00056299]
[1767111972878,0.53912357,89275.0,89257.0,0.00056299]
[1767111973084,0.29438,89269.0,89239.0,0.22604]
[1767111973286,0.29438,89259.0,89239.0,0.0002]
[1767111973452,0.29438,89257.0,89239.0,0.0002]
[1767111973657,0.29438,89263.0,89257.0,0.000549]
[1767111973892,0.01136,89262.0,89257.0,0.000549]
[1767111974102,0.30574,89262.0,89257.0,0.000549]
[1767111974321,0.01136,89265.0,89247.0,0.19220485]
[1767111974529,0.30574,89265.0,89247.0,0.181]
[1767111975184,0.30574,89265.0,89245.0,0.01136]
[1767111975402,0.29438,89259.0,89245.0,0.01136]
[1767111976223,0.00055,89245.0,89241.0,0.0005012]
[1767111976844,0.30867,89252.0,89241.0,0.0005012]
[1767111977048,0.29731,89250.0,89225.0,0.0004]
[1767111977475,0.29731,89239.0,89225.0,0.00050637]
[1767111977903,0.01136,89242.0,89225.0,0.19411637]
[1767111978091,0.01136,89242.0,89226.0,0.01120749]
[1767111978257,0.01136,89242.0,89225.0,0.19411637]
[1767111978258,0.30867,89242.0,89225.0,0.19411637]
[1767111979066,0.30867,89242.0,89206.0,0.23004846]
[1767111979067,0.00055,89225.0,89216.0,0.01136]
[1767111979271,0.29731,89237.0,89217.0,0.19412]
[1767111979901,0.29731,89237.0,89216.0,0.01146655]
[1767111980878,0.29731,89229.0,89211.0,0.0005012]
[1767111981104,0.29731,89224.0,89211.0,0.00060756]
[1767111982070,0.29731,89220.0,89206.0,0.01721078]
[1767111982227,0.29741632,89220.0,89206.0,0.01721078]
[1767111982429,0.00010632,89220.0,89206.0,0.01721078]
[1767111982635,3.2e-07,89220.0,89207.0,0.19428]
[1767111986387,0.2427,89244.0,89215.0,0.01120887]
[1767111986388,0.01136,89234.0,89215.0,0.01120887]
[1767111986612,0.29731,89237.0,89218.0,0.19428]
[1767111987704,0.29731,89237.0,89219.0,0.01131683]
[1767111987846,0.29731,89237.0,89219.0,0.00010632]
[1767111988045,0.29731,89237.0,89220.0,0.01136]
[1767111988250,0.29731,89237.0,89219.0,0.00010632]
[1767111988604,0.29731,89229.0,89219.0,0.00010632]
[1767111989076,0.53912357,89230.0,89206.0,0.00585078]
[1767111989077,0.29731,89218.0,89206.0,0.00585078]
[1767111989293,0.29731,89215.0,89188.0,0.00023619]
[1767111989496,0.29731,89201.0,89188.0,0.00023619]
[1767111990151,0.29731,89214.0,89188.0,0.00023619]
[1767111990345,0.01136,89209.0,89201.0,0.000443]
[1767111990552,0.30867,89208.0,89191.0,0.20093]
[1767111990692,0.29731,89208.0,89191.0,0.0004]
[1767111990896,0.30867,89208.0,89191.0,0.0004]
[1767111991321,0.01136,89207.0,89191.0,0.00035721]
[1767111991541,0.29731,89206.0,89191.0,0.00035721]
[1767111993185,0.29731,89209.0,89191.0,0.00035721]
[1767111993408,0.01136,89210.0,89209.0,0.000443]
[1767111993622,0.29731,89210.0,89196.0,0.21189]
[1767111994105,0.30867,89214.0,89196.0,0.21189]
[1767111994257,0.29731,89214.0,89196.0,0.21189]
[1767111994461,0.30867,89214.0,89196.0,0.21189]
[1767111994662,0.53912357,89210.0,89196.0,0.01136]
[1767111994867,0.29731,89195.0,89191.0,0.00035721]
[1767111995267,0.29731,89203.0,89191.0,0.00035721]
[1767111995771,0.01136,89209.0,89192.0,0.20053]
[1767111996251,0.01136,89211.0,89194.0,0.20053]
[1767111996426,0.30877651,89215.0,89196.0,0.20053]
[1767111996633,0.30877651,89215.0,89211.0,0.000443]
[1767111996839,0.30877651,89215.0,89200.0,0.20053]
[1767111998303,0.29741651,89215.0,89200.0,0.20053]
[1767111999157,0.000106,89200.0,89197.0,0.01136]
[1767111999588,0.29731,89204.0,89197.0,0.01136]
[1767111999704,0.29731,89204.0,89191.0,0.00035721]
[1767112000544,0.29731,89204.0,89191.0,0.00052711]
[1767112001427,0.01136,89203.0,89191.0,0.00042111]
[1767112001626,0.29731,89209.0,89191.0,0.20095111]
[1767112001836,0.01136,89204.0,89191.0,0.20095111]
[1767112002156,0.01136,89204.0,89191.0,0.00042111]
[1767112002808,0.29731,89203.0,89191.0,0.00042111]
[1767112003008,0.29731,89208.0,89191.0,0.20095111]
[1767112003224,0.01136,89207.0,89191.0,0.20095111]
[1767112003517,0.00010651,89215.0,89193.0,0.21174164]
[1767112003518,0.29731,89214.0,89193.0,0.21174164]
[1767112003719,0.00010651,89215.0,89207.0,0.000106]
[1767112003940,0.02371553,89219.0,89210.0,0.0112095]
[1767112004168,0.29731,89236.0,89219.0,0.000443]
[1767112004367,0.01046459,89235.0,89219.0,0.00054951]
[1767112004570,0.29731,89236.0,89221.0,0.01120812]
[1767112004777,0.29731,89236.0,89223.0,0.05603904]
[1767112005114,0.01136,89238.0,89224.0,0.01120774]
[1767112005283,0.01136,89238.0,89222.0,0.17662]
[1767112005632,0.01136,89238.0,89222.0,0.18782799]
[1767112005836,0.01136,89238.0,89222.0,0.17662]
[1767112006032,0.01136,89240.0,89222.0,0.18782799]
[1767112006280,0.29668,89239.0,89222.0,0.17662]
[1767112006699,0.29668,89239.0,89219.0,0.00010651]
[1767112007905,0.29668,89239.0,89221.0,0.01120812]
[1767112008087,0.29668,89239.0,89225.0,0.01120762]
[1767112008336,0.01136,89238.0,89225.0,0.01120762]
[1767112008486,0.01136,89238.0,89223.0,0.17662]
[1767112009078,0.01136,89238.0,89223.0,0.18782787]
[1767112009290,0.01136,89238.0,89225.0,0.18782762]
[1767112009657,0.01136,89238.0,89225.0,0.17662]
[1767112009973,0.01136,89238.0,89225.0,0.18782762]
[1767112010195,0.29668,89257.0,89238.0,0.000106]
[1767112010399,0.29668,89255.0,89238.0,0.000106]
[1767112010591,0.29668,89253.0,89238.0,0.06723552]
[1767112010827,0.29668,89253.0,89236.0,0.17662]
[1767112011514,0.29668,89253.0,89237.0,0.01120611]
[1767112012033,0.29668,89253.0,89237.0,0.17662]
[1767112012669,0.01136,89256.0,89241.0,0.01120561]
[1767112012893,0.0003126,89278.0,89243.0,0.01120536]
[1767112012894,0.29668,89259.0,89243.0,0.01120536]
[1767112013094,0.29668,89275.0,89256.0,0.000106]
[1767112013263,0.29668,89273.0,89247.0,0.17662]
[1767112013456,0.29668,89269.0,89247.0,0.17662]
[1767112013905,0.29668,89269.0,89251.0,0.17662]
[1767112014099,0.29668,89269.0,89250.0,0.55032805]
[1767112014100,0.29668,89269.0,89253.0,0.17662]
[1767112014330,0.00035538,89269.0,89253.0,0.17662]
[1767112015873,0.29668,89268.0,89252.0,0.01136]
[1767112016202,0.29668,89268.0,89253.0,0.17662]
[1767112019057,0.29668,89268.0,89252.0,0.01136]
[1767112019737,0.000443,89252.0,89240.0,0.28724]
[1767112019949,0.000443,89252.0,89241.0,0.0002]
[1767112020157,0.28869,89259.0,89241.0,0.0002]
[1767112020564,0.28864751,89259.0,89241.0,0.0002]
[1767112022282,0.0002,89261.0,89259.0,0.000106]
[1767112022513,0.01136,89266.0,89259.0,0.000106]
[1767112022731,0.01136,89267.0,89252.0,0.28724]
[1767112022965,0.01146653,89267.0,89259.0,0.0002]
[1767112023614,0.00010653,89267.0,89259.0,0.0002]
[1767112023853,0.27733,89266.0,89249.0,0.01136]
[1767112024613,0.27733,89266.0,89197.0,0.01121113]
[1767112024614,0.27733,89245.0,89197.0,0.01121113]
[1767112024855,0.28869,89245.0,89224.0,0.28724]
[1767112025106,0.01136,89258.0,89230.0,1.07830204]
[1767112025361,0.27733,89252.0,89230.0,0.28724]
[1767112025630,0.28853423,89252.0,89231.0,0.010917]
[1767112025867,0.28853423,89252.0,89200.0,0.84711547]
[1767112025868,0.27733,89244.0,89228.0,0.01136]
[1767112026066,0.27733,89244.0,89229.0,0.01136]
[1767112026271,0.01120548,89242.0,89229.0,0.01136]
[1767112026478,0.28853536,89243.0,89229.0,0.01136]
[1767112026953,0.27733,89243.0,89229.0,0.01136]
[1767112026954,0.28853536,89243.0,89229.0,0.01136]
[1767112027214,0.27733,89243.0,89229.0,0.01136]
[1767112027744,0.01136,89248.0,89229.0,0.01136]
[1767112028002,0.01136,89248.0,89229.0,0.2986]
[1767112028243,0.79106204,89240.0,89206.0,0.28724]
[1767112028474,0.01120498,89246.0,89223.0,0.28724]
[1767112028707,0.27733,89244.0,89224.0,0.01136]
[1767112028949,0.27733,89243.0,89224.0,0.01136]
[1767112029172,0.4027806,89243.0,89224.0,0.01136]
[1767112029380,0.39157524,89243.0,89224.0,0.01136]
[1767112029538,0.39168173,89243.0,89224.0,0.01136]
[1767112029762,0.27733,89233.0,89218.0,0.04484]
[1767112029960,0.27733,89233.0,89219.0,0.01136]
[1767112030641,0.27733,89233.0,89220.0,0.01136]
[1767112030734,0.28869,89241.0,89220.0,0.01136]
[1767112030940,0.79106204,89250.0,89220.0,0.01136]
[1767112030941,0.28869,89249.0,89221.0,0.28724]
[1767112032044,0.27733,89255.0,89227.0,0.28724]
[1767112032238,0.80226401,89270.0,89255.0,0.000442]
[1767112032559,0.28869,89268.0,89249.0,0.01136]